bitfinex/quotes_ETHUSD_20260228
["timestamp","ask_amount","ask_price","bid_price","bid_amount"]
[1772271042926,3.15219539,1859.0,1858.4,0.0011]
[1772271044921,5.77051607,1858.8,1858.4,0.0011]
[1772271045241,5.77051607,1858.8,1858.5,0.0011]
[1772271046146,5.77051607,1858.8,1858.3,0.0011]
[1772271047060,5.77051607,1858.6,1858.3,0.0011]
[1772271047354,5.77051607,1858.6,1858.1,0.0011]
[1772271047520,7.11554216,1858.7,1858.1,5.86511064]
[1772271047722,7.11554216,1858.7,1858.1,0.0011]
[1772271048424,7.11554216,1858.7,1858.1,5.86511064]
[1772271049345,7.11554216,1858.7,1858.1,0.0011]
[1772271052931,7.11554216,1858.7,1858.1,1.66792282]
[1772271054995,5.77051607,1858.9,1858.2,5.86401064]
[1772271056439,5.77051607,1858.9,1858.1,6.78275637]
[1772271056440,7.11541359,1858.9,1858.3,7.63901064]
[1772271057740,0.001,1858.8,1858.3,7.63901064]
[1772271058173,0.001,1858.8,1858.4,5.86401064]
[1772271059956,5.77151607,1858.8,1858.3,1.775]
[1772271060353,5.77151607,1858.8,1858.3,7.63901064]
[1772271060567,5.77151607,1858.8,1858.3,5.86401064]
[1772271060769,5.77151607,1858.8,1858.4,1.776]
[1772271061152,0.001,1858.8,1858.5,5.86401064]
[1772271063170,0.37856532,1859.2,1858.6,5.86401064]
[1772271064576,6.14908139,1859.2,1858.6,5.86401064]
[1772271065990,5.77051607,1859.1,1858.6,5.86401064]
[1772271066350,6.14908139,1859.2,1858.6,5.86401064]
[1772271066847,5.77051607,1859.1,1858.6,5.86401064]
[1772271067043,7.11529872,1859.1,1858.6,5.86401064]
[1772271067287,5.77051607,1859.1,1858.7,1.779]
[1772271067962,7.11525999,1859.1,1858.7,1.779]
[1772271068164,5.77051607,1859.1,1858.7,1.779]
[1772271068376,6.14908139,1859.2,1858.7,7.64301064]
[1772271070056,0.001,1859.1,1858.8,5.86401064]
[1772271071300,0.001,1859.1,1858.9,1.78]
[1772271071708,0.001,1859.5,1859.1,7.02036772]
[1772271071984,0.001,1859.5,1859.1,5.67565749]
[1772271072190,0.001,1859.7,1859.3,5.67565749]
[1772271072375,9.14460959,1860.4,1859.1,1.3447314]
[1772271072376,5.93793076,1860.2,1859.5,5.67565749]
[1772271072589,7.2818909,1860.2,1859.5,5.67565749]
[1772271072764,5.93793076,1860.2,1859.5,5.67565749]
[1772271072965,5.93993075,1860.1,1859.6,1.709]
[1772271074395,0.00199999,1860.0,1859.6,1.709]
[1772271074567,5.93793076,1860.1,1859.6,1.709]
[1772271074766,0.00199999,1860.0,1859.6,1.709]
[1772271075985,5.93993075,1860.0,1859.6,1.709]
[1772271076164,0.00199999,1859.9,1859.6,7.38465749]
[1772271076360,0.00199999,1860.2,1859.8,5.67565749]
[1772271076582,7.28161076,1860.6,1859.9,1.781]
[1772271076583,0.00199999,1860.1,1859.9,1.781]
[1772271076791,5.93793076,1860.3,1859.9,1.781]
[1772271076991,0.00199999,1860.2,1859.9,1.781]
[1772271078419,7.28159234,1860.6,1860.0,5.67565749]
[1772271078616,7.28159234,1860.6,1860.1,1.782]
[1772271078617,5.93793076,1860.5,1860.1,1.782]
[1772271078920,5.93793076,1860.5,1860.0,1.782]
[1772271080713,7.28172779,1860.4,1860.0,1.782]
[1772271080914,5.93793076,1860.4,1860.0,1.782]
[1772271082019,0.001,1860.1,1860.0,1.782]
[1772271082320,1.7232357,1860.7,1860.1,5.67565749]
[1772271082507,7.66116646,1860.7,1860.1,5.67565749]
[1772271082819,7.66116895,1860.7,1860.1,5.67565749]
[1772271084022,7.66116895,1860.7,1860.2,1.78]
[1772271084605,6.31758567,1860.7,1860.2,1.78]
[1772271085520,7.66116759,1860.7,1860.2,1.78]
[1772271085718,5.93793076,1860.6,1859.8,5.67565749]
[1772271085906,5.93793076,1860.6,1859.9,1.781]
[1772271086597,5.93793076,1860.2,1859.4,5.67565749]
[1772271086919,5.93793076,1860.2,1859.5,1.78]
[1772271087820,5.93793076,1860.2,1859.4,5.67565749]
[1772271087821,5.93793076,1860.0,1859.4,7.45565749]
[1772271088526,5.93793076,1860.0,1859.5,1.78]
[1772271089410,5.93793076,1859.8,1859.2,1.78]
[1772271089605,5.93793076,1860.1,1859.3,5.67565749]
[1772271089814,7.28198068,1860.1,1859.3,5.67565749]
[1772271090026,7.28198068,1860.1,1859.2,1.78]
[1772271090198,5.93793076,1859.6,1859.0,5.67565749]
[1772271091325,5.93793076,1859.6,1859.1,1.779]
[1772271091506,5.93793076,1860.0,1859.1,7.45465749]
[1772271092104,5.93793076,1859.8,1859.1,7.45465749]
[1772271093539,5.93793076,1859.8,1859.1,8.7993866]
[1772271093739,5.93793076,1859.8,1859.2,0.0011]
[1772271094120,5.93793076,1859.8,1859.2,7.02139003]
[1772271094448,1.34416946,1859.9,1859.2,7.02139003]
[1772271094742,7.28210022,1859.9,1859.2,5.67675749]
[1772271095841,7.28299166,1860.1,1859.2,7.02140924]
[1772271097541,7.28299166,1860.1,1859.3,1.779]
[1772271097721,7.28299166,1860.1,1859.4,1.779]
[1772271098328,7.28299166,1860.1,1859.5,5.67565749]
[1772271100178,7.28299166,1860.1,1859.5,1.779]
[1772271100860,7.28299166,1860.1,1859.4,1.779]
[1772271103053,7.28299166,1860.1,1859.2,7.85621427]
[1772271103254,7.28299166,1860.1,1859.3,1.778]
[1772271104269,5.65312628,1860.0,1859.3,1.778]
[1772271104650,5.65312628,1859.8,1859.3,1.778]
[1772271105275,5.65312628,1859.8,1859.2,3.95755678]
[1772271106461,5.65312628,1859.8,1859.2,11.03170797]
[1772271106641,6.99738086,1859.8,1859.2,9.68704602]
[1772271107347,5.65312628,1859.8,1859.3,5.72948924]
[1772271107652,1.34415968,1859.9,1859.3,5.72948924]
[1772271107978,6.99728596,1859.9,1859.3,5.72948924]
[1772271108178,6.99729381,1859.9,1859.2,3.95755678]
[1772271108485,6.99729381,1859.9,1859.2,5.30221001]
[1772271108772,6.99729381,1859.9,1859.2,11.03169925]
[1772271109684,6.99729381,1859.9,1859.4,2.115128]
[1772271110054,0.001,1860.0,1859.5,5.72948924]
[1772271110377,2.96100619,1860.3,1859.7,5.72948924]
[1772271110578,1.61712628,1860.3,1859.7,7.07375778]
[1772271111072,1.34385592,1860.4,1859.7,7.07375778]
[1772271111445,6.9969822,1860.4,1859.7,7.07375778]
[1772271111646,1.34385592,1860.4,1859.7,7.07375778]
[1772271112579,6.99687924,1860.5,1859.7,7.07375778]
[1772271113399,5.65312628,1860.5,1859.7,7.07375778]
[1772271114463,5.65312628,1860.5,1859.8,7.51048924]
[1772271114778,6.99692331,1860.4,1859.8,8.85469515]
[1772271114980,6.99692331,1860.4,1859.9,5.72948924]
[1772271116685,5.37490222,1860.5,1859.9,5.72948924]
[1772271116686,6.99677886,1860.6,1859.9,5.72948924]
[1772271116867,6.99677886,1860.6,1859.9,7.07364169]
[1772271117066,6.99677886,1860.6,1859.9,5.72948924]
[1772271117276,6.99677886,1860.6,1859.8,8.85571947]
[1772271117459,6.99677886,1860.6,1859.9,5.72948924]
[1772271119188,0.001,1860.3,1859.9,5.72948924]
[1772271119681,0.001,1860.3,1859.9,7.07364487]
[1772271120079,0.001,1860.3,1859.9,5.72948924]
[1772271120260,0.001,1860.3,1859.9,7.07364707]
[1772271120591,0.001,1860.3,1859.9,5.72948924]
[1772271120757,5.65412628,1860.3,1859.5,5.72948924]
[1772271121083,5.65312628,1860.1,1859.5,1.784]
[1772271122479,5.65312628,1860.0,1859.4,2.116228]
[1772271122900,5.65312628,1860.0,1859.5,5.72948924]
[1772271123207,5.65312628,1860.0,1859.5,7.07392739]
[1772271123404,6.99721588,1860.0,1859.5,5.72948924]
[1772271124387,6.99721588,1860.0,1859.9,1.01498832]
[1772271125106,5.65312628,1859.9,1859.4,2.116228]
[1772271125283,5.65312628,1859.9,1859.4,2.12315448]
[1772271125806,5.65312628,1859.6,1859.4,2.116228]
[1772271126307,5.65312628,1859.6,1859.2,0.00692648]
[1772271126483,5.65312628,1859.6,1859.1,0.0011]
[1772271127308,6.99757371,1859.5,1859.1,0.0011]
[1772271131693,6.99757371,1859.5,1859.2,0.0011]
[1772271135211,6.99757371,1859.5,1859.1,0.0011]
[1772271138754,5.81523449,1859.3,1859.0,0.0011]
[1772271139944,1.34444743,1859.5,1859.0,5.51465511]
[1772271140147,3.18944743,1859.5,1859.0,5.51465511]
[1772271140456,0.001,1859.9,1859.0,6.85942574]
[1772271140619,7.16044829,1859.9,1859.0,6.85942574]
[1772271141034,7.16044829,1859.9,1859.2,5.51355511]
[1772271143061,7.16044829,1859.9,1859.2,6.85820173]
[1772271144161,7.16044829,1859.9,1859.2,6.85930173]
[1772271144466,0.001,1859.8,1859.2,6.85930173]
[1772271145553,0.001,1859.8,1859.2,5.51465511]
[1772271145554,5.81623449,1859.8,1859.2,5.51465511]
[1772271145758,5.81623449,1859.8,1859.2,6.85931425]
[1772271147050,0.001,1859.8,1859.5,5.51355511]
[1772271148768,0.001,1859.8,1859.4,1.34451973]
[1772271148769,5.81623449,1859.8,1859.3,5.51355511]
[1772271149073,7.16050831,1859.8,1859.3,8.64014439]
[1772271152575,7.16050831,1859.8,1859.3,1.34458928]
[1772271152869,7.16050831,1859.8,1859.2,5.51465511]
[1772271153878,7.16050831,1859.8,1859.2,6.85931894]
[1772271154046,7.16050831,1859.8,1859.2,5.51465511]
[1772271154442,5.81523449,1859.7,1859.2,5.51465511]
[1772271154643,1.34527382,1859.8,1859.3,5.51355511]
[1772271155274,7.16050831,1859.8,1859.3,5.51355511]
[1772271156072,5.81523449,1859.6,1859.2,0.0011]
[1772271156275,5.81523449,1859.6,1859.2,5.51465511]
[1772271157154,5.81523449,1859.6,1859.2,0.0011]
[1772271157155,7.15966426,1859.6,1859.2,0.0011]
[1772271158454,7.23450053,1859.7,1859.2,0.0011]
[1772271158455,0.001,1859.7,1859.2,5.51465511]
[1772271158858,1.34531109,1859.7,1859.2,5.51465511]
[1772271159068,0.001,1859.7,1859.2,5.51465511]
[1772271159270,0.001,1859.7,1859.3,1.34459205]
[1772271159476,0.001,1859.7,1859.4,5.51355511]
[1772271160279,0.001,1859.7,1859.4,7.30255511]
[1772271160484,0.001,1859.7,1859.4,1.789]
[1772271160976,0.001,1859.7,1859.2,8.5106711]
[1772271160977,5.4736238,1859.7,1859.2,8.5106711]
[1772271161185,0.001,1859.7,1859.3,5.37496351]
[1772271161478,0.001,1859.7,1859.4,6.71948324]
[1772271161851,0.001,1859.7,1859.5,5.37496351]
[1772271162477,0.001,1860.3,1859.7,5.66576229]
[1772271162656,0.001,1860.3,1859.9,5.66576229]
[1772271163186,0.001,1860.3,1860.0,1.792]
[1772271164197,0.001,1860.3,1859.9,7.0099098]
[1772271164363,0.001,1860.3,1859.9,8.8019098]
[1772271164552,0.001,1860.3,1859.9,7.45776229]
[1772271165582,0.001,1860.3,1859.9,8.80191939]
[1772271165781,0.001,1860.3,1860.0,5.66576229]
[1772271167080,0.001,1860.3,1860.1,1.795]
[1772271167791,0.001,1860.2,1860.1,1.795]
[1772271169890,5.78082719,1860.2,1859.6,1.798]
[1772271170187,5.78082719,1860.2,1859.4,5.66576229]
[1772271170188,5.78082719,1860.2,1859.5,1.798]
[1772271170888,5.78082719,1860.2,1859.4,5.66576229]
[1772271171062,5.78082719,1860.2,1859.5,1.798]
[1772271171273,5.78082719,1860.2,1859.5,7.46376229]
[1772271171890,7.12384095,1860.1,1859.5,7.46376229]
[1772271174283,7.12384095,1860.1,1859.5,8.8082095]
[1772271174484,7.12384095,1860.1,1859.5,7.46376229]
[1772271174793,7.12384095,1860.1,1859.6,5.66576229]
[1772271175392,7.12384095,1860.1,1859.5,1.798]
[1772271176969,7.12384095,1860.1,1859.4,5.66576229]
[1772271177294,7.12384095,1860.1,1859.4,7.01026211]
[1772271177468,7.12384095,1860.1,1859.5,1.799]
[1772271179793,7.12384095,1860.1,1859.4,7.46476229]
[1772271180101,7.12384095,1860.1,1859.6,0.0011]
[1772271180301,7.12484095,1860.1,1859.6,0.0011]
[1772271180598,5.77982719,1859.9,1859.5,0.0011]
[1772271180764,5.77982719,1859.7,1859.5,0.0011]
[1772271181296,5.77982719,1859.5,1859.2,0.0011]
[1772271182095,5.77982719,1859.5,1859.0,0.0011]
[1772271182499,5.77982719,1859.1,1859.0,0.0011]
[1772271182999,7.12456389,1859.1,1859.0,0.0011]
[1772271183293,7.12456389,1859.1,1858.5,0.0011]
[1772271183497,5.77982719,1858.9,1858.5,0.0011]
[1772271184786,7.12456389,1859.1,1858.5,7.01202626]
[1772271184999,7.12456389,1859.1,1858.5,5.66686229]
[1772271185993,7.12456389,1859.1,1858.5,0.0011]
[1772271186378,5.77982719,1858.9,1858.5,0.0011]
[1772271187081,7.12478092,1858.8,1858.5,0.0011]
[1772271189597,7.12478092,1858.8,1858.3,1.5382625]
[1772271189801,7.12478092,1858.8,1858.2,0.0011]
[1772271190000,5.77982719,1858.5,1858.2,0.0011]
[1772271190229,5.77982719,1858.4,1857.9,0.0011]
[1772271191082,1.34531561,1858.3,1857.9,0.0011]
[1772271192206,5.68996244,1858.2,1857.5,0.0011]
[1772271192508,5.68996244,1858.2,1857.6,5.71900066]
[1772271193105,1.34546041,1858.1,1857.7,0.0011]
[1772271193288,1.34546041,1858.1,1858.0,0.0011]
[1772271194088,7.03542285,1858.1,1857.9,0.0011]
[1772271194311,5.68996244,1858.0,1857.7,0.0011]
[1772271194516,5.68996244,1858.0,1857.7,0.0022]
[1772271195796,7.03556769,1857.9,1857.7,0.0022]
[1772271196186,1.879,1858.3,1857.7,0.0022]
[1772271196187,8.92127805,1858.4,1857.7,5.71900066]
[1772271196392,5.68996244,1858.3,1857.7,5.71900066]
[1772271196810,5.68996244,1858.3,1857.8,0.0011]
[1772271198010,7.03529979,1858.3,1857.8,0.0011]
[1772271198415,5.93584779,1858.3,1857.8,0.0011]
[1772271199291,5.68996244,1858.2,1857.8,0.0011]
[1772271199994,5.68996244,1858.0,1857.7,0.0011]
[1772271202120,1.34559142,1858.0,1857.7,0.0011]
[1772271203803,7.03555386,1858.0,1857.7,0.0011]
[1772271204110,1.34542177,1858.2,1857.7,5.71900066]
[1772271204630,9.45301106,1857.9,1857.7,0.0011]
[1772271204923,9.45301106,1857.9,1857.5,0.0011]
[1772271204924,5.68996244,1857.8,1857.5,0.0011]
[1772271205252,5.68996244,1857.5,1856.9,5.71790066]
[1772271205530,5.68996244,1857.5,1856.6,2.74997632]
[1772271205531,1.899,1857.5,1856.7,5.71790066]
[1772271206103,1.34596748,1857.4,1856.9,5.71790066]
[1772271206519,8.93456769,1858.0,1856.9,5.71790066]
[1772271206719,11.07255523,1857.9,1856.9,5.71790066]
[1772271207323,3.24459192,1858.0,1856.9,5.71790066]
[1772271207704,7.03555436,1858.0,1856.9,5.71790066]
[1772271208206,1.34559192,1858.0,1857.1,5.71790066]
[1772271208406,1.34559192,1858.0,1857.3,5.71790066]
[1772271210822,7.03555436,1858.0,1857.3,5.71790066]
[1772271211005,7.03555436,1858.0,1857.3,8.85793523]
[1772271211607,7.03555436,1858.0,1857.3,8.85794032]
[1772271211914,0.38735658,1858.1,1857.4,5.71790066]
[1772271212113,1.73282225,1858.1,1857.4,5.71790066]
[1772271212321,0.38735658,1858.1,1857.4,5.71790066]
[1772271212903,0.38735658,1858.1,1857.6,5.71790066]
[1772271213311,1.7328199,1858.1,1857.6,5.71790066]
[1772271213534,0.38735658,1858.1,1857.6,5.71790066]
[1772271214038,0.38735658,1858.1,1857.7,1.795]
[1772271214334,0.38735658,1858.1,1857.8,5.71790066]
[1772271214743,1.73282318,1858.1,1857.8,5.71790066]
[1772271215034,0.38735658,1858.1,1857.8,5.71790066]
[1772271215421,0.38735658,1858.1,1857.8,7.06353502]
[1772271215642,0.38735658,1858.1,1857.8,5.71790066]
[1772271216012,0.38735658,1858.1,1857.8,7.06354999]
[1772271216643,0.38735658,1858.1,1857.8,5.71790066]
[1772271216838,0.38735658,1858.1,1857.8,7.06357788]
[1772271217053,0.30310887,1858.1,1857.8,7.06357788]
[1772271217517,0.30310887,1858.1,1857.9,1.798]
[1772271218033,0.30310887,1858.1,1857.8,5.71790066]
[1772271218227,0.30310887,1858.1,1857.8,1.799]
[1772271218733,0.001,1858.0,1857.8,1.799]
[1772271221341,0.001,1858.0,1857.7,7.51990066]
[1772271221714,0.001,1858.0,1857.7,8.86565018]
[1772271222229,0.001,1858.0,1857.6,6.62705837]
[1772271222541,0.001,1858.0,1857.6,8.43005837]
[1772271222747,0.001,1858.0,1857.7,5.28129236]
[1772271223439,0.001,1858.0,1857.8,6.62697004]
[1772271223813,0.001,1858.0,1857.8,5.28129236]
[1772271224417,0.001,1858.0,1857.6,6.6270887]
[1772271224619,0.001,1858.0,1857.8,1.805]
[1772271225632,0.001,1858.0,1857.8,3.15067305]
[1772271225832,0.001,1858.0,1857.8,1.805]
[1772271226436,0.001,1858.0,1857.8,7.08629236]
[1772271226652,0.30310887,1858.1,1857.9,5.28129236]
[1772271227037,0.30310887,1858.1,1857.8,1.805]
[1772271229053,0.30310887,1858.1,1857.8,3.15066785]
[1772271229352,0.30310887,1858.1,1857.8,8.43196021]
[1772271229654,0.30310887,1858.1,1857.8,7.08629236]
[1772271229951,0.30310887,1858.1,1857.8,8.43196967]
[1772271231255,0.30310887,1858.1,1857.6,5.28129236]
[1772271231444,7.30655961,1858.1,1857.7,1.812]
[1772271231645,7.30655961,1858.1,1857.5,1.34694418]
[1772271231646,5.65898298,1858.0,1857.5,0.0011]
[1772271231853,1.34560525,1857.9,1857.5,0.0011]
[1772271232036,7.00358823,1857.9,1857.5,0.0011]
[1772271234661,0.001,1858.0,1857.6,5.28129236]
[1772271236039,0.001,1858.2,1857.8,5.28129236]
[1772271236367,0.001,1858.2,1857.9,7.09529236]
[1772271236736,0.001,1858.2,1857.9,8.44082578]
[1772271237046,5.65898298,1858.2,1857.6,5.28129236]
[1772271237363,5.65798298,1858.1,1857.7,1.814]
[1772271238050,5.65798298,1858.1,1857.5,0.0011]
[1772271238247,5.65798298,1858.1,1857.5,3.16098972]
[1772271238562,5.65798298,1858.1,1857.5,8.44228208]
[1772271238756,5.65798298,1858.1,1857.5,7.09639236]
[1772271239544,5.65798298,1858.1,1857.6,5.28129236]
[1772271240448,7.0043781,1858.2,1857.6,5.28129236]
[1772271240956,5.65898298,1858.2,1857.6,5.28129236]
[1772271241565,5.65898298,1858.2,1857.8,5.28129236]
[1772271241739,5.65898298,1858.2,1857.8,7.09629236]
[1772271241940,7.0043829,1858.2,1857.8,1.815]
[1772271242145,7.0043829,1858.2,1857.6,1.34579292]
[1772271242371,7.0043829,1858.2,1857.7,1.816]
[1772271242866,0.001,1858.2,1857.8,5.28129236]
[1772271243440,7.00438156,1858.2,1857.8,5.28129236]
[1772271243656,7.00438156,1858.2,1857.8,6.62694276]
[1772271243657,0.001,1858.0,1857.8,6.62694276]
[1772271243969,0.001,1858.0,1857.8,5.28129236]
[1772271244142,0.001,1858.0,1857.8,6.62696491]
[1772271244436,0.001,1858.0,1857.8,5.28129236]
[1772271244641,0.001,1858.0,1857.6,0.0011]
[1772271244642,5.65898298,1858.0,1857.6,0.0011]
[1772271244891,5.65898298,1858.0,1857.4,0.0011]
[1772271244892,5.65798298,1857.9,1857.4,0.0011]
[1772271245755,7.00366066,1857.8,1857.4,0.0011]
[1772271246445,5.65798298,1857.8,1857.4,0.0011]
[1772271247878,0.001,1858.0,1857.6,5.28129236]
[1772271248971,1.34653633,1858.0,1857.6,5.28129236]
[1772271249173,7.00451931,1858.0,1857.5,1.816]
[1772271249349,7.00451931,1858.0,1857.5,7.09729236]
[1772271249668,5.65898298,1858.0,1857.5,7.09729236]
[1772271249855,7.00451857,1858.0,1857.5,7.09729236]
[1772271250054,7.00451857,1858.0,1857.5,3.16189488]
[1772271250254,7.00451857,1858.0,1857.4,6.62830021]
[1772271250447,7.00451857,1858.0,1857.5,5.3343707]
[1772271250771,7.00451857,1858.0,1857.4,0.0011]
[1772271251347,7.00451857,1858.0,1857.4,1.34706429]
[1772271251551,7.00451857,1858.0,1857.4,6.68143499]
[1772271252978,7.00451857,1858.0,1857.4,5.3354707]
[1772271253148,7.00451857,1858.0,1857.4,7.1534707]
[1772271254071,7.00451857,1858.0,1857.4,5.3354707]
[1772271254275,7.00451857,1858.0,1857.4,1.8191]
[1772271254853,0.001,1858.0,1857.7,5.3343707]
[1772271255848,5.47865171,1858.0,1857.6,1.819]
[1772271256975,0.001,1858.0,1857.7,5.3343707]
[1772271259084,0.001,1858.0,1857.8,1.34567768]
[1772271259778,0.001,1858.0,1857.8,6.68004838]
[1772271261859,0.001,1858.0,1857.9,1.826]
[1772271262170,5.47865171,1858.0,1857.6,5.3343707]
[1772271262483,5.47865171,1858.0,1857.8,1.826]
[1772271262484,0.001,1858.0,1857.8,1.826]
[1772271262683,0.001,1858.0,1857.8,7.1603707]
[1772271262884,0.001,1858.0,1857.9,5.3343707]
[1772271264684,0.001,1858.1,1858.0,5.3343707]
[1772271264867,0.47965171,1858.5,1858.0,5.3343707]
[1772271265062,0.47965171,1858.5,1858.1,1.829]
[1772271265382,5.76016738,1858.5,1857.8,1.829]
[1772271265581,0.47965171,1858.5,1857.8,1.829]
[1772271266289,5.47765171,1858.5,1857.8,1.829]
[1772271266659,0.55974128,1858.3,1857.8,1.829]
[1772271266981,0.55974128,1858.3,1857.8,7.20167876]
[1772271267183,0.148226,1858.4,1857.8,7.20067876]
[1772271267684,3.25917083,1858.6,1857.8,7.20067876]
[1772271267890,5.38097287,1858.5,1857.8,7.20067876]
[1772271268062,3.57378309,1858.6,1857.8,7.20067876]
[1772271268258,0.001,1858.4,1857.9,5.8734451]
[1772271268465,3.25917083,1858.6,1857.9,5.8734451]
[1772271268659,5.38097287,1858.5,1857.9,5.8734451]
[1772271268863,5.38097287,1858.5,1857.9,7.21902273]
[1772271269064,0.29282909,1858.4,1857.9,7.21902273]
[1772271269680,1.63798248,1858.6,1857.9,7.21902273]
[1772271269884,1.63798248,1858.6,1857.9,5.8734451]
[1772271269885,0.29282909,1858.5,1857.9,5.8734451]
[1772271270282,0.43962495,1858.4,1857.7,7.7024451]
[1772271270470,0.43962495,1858.4,1857.7,1.829]
[1772271270989,0.43962495,1858.2,1857.6,1.8301]
[1772271271289,10.66174666,1858.5,1857.7,6.09325757]
[1772271271290,1.34524321,1858.5,1857.7,6.09325757]
[1772271271463,3.25824321,1858.5,1857.7,6.09325757]
[1772271271660,0.00103139,1858.4,1857.7,6.09325757]
[1772271272690,0.14660762,1858.4,1857.8,6.09377327]
[1772271272888,3.25809846,1858.7,1857.8,6.09377327]
[1772271273095,0.00103334,1858.6,1857.9,7.99607708]
[1772271273290,3.25809846,1858.7,1857.9,7.99607708]
[1772271273698,3.25809846,1858.7,1858.0,6.16759375]
[1772271273900,3.25809846,1858.7,1857.9,7.99659375]
[1772271274396,3.25809846,1858.7,1857.7,6.3860106]
[1772271274570,3.57271072,1858.7,1857.8,1.829]
[1772271274771,5.38042169,1858.6,1857.9,6.3860106]
[1772271274967,3.25809846,1858.7,1857.9,6.3860106]
[1772271276211,5.38042169,1858.6,1857.9,6.3860106]
[1772271276394,3.57271072,1858.7,1857.9,6.3860106]
[1772271276568,0.31461226,1858.5,1857.7,8.329]
[1772271276772,0.28051567,1858.4,1857.6,0.0011]
[1772271276994,1.345388,1858.2,1857.6,0.0011]
[1772271277166,0.31461226,1858.2,1857.6,0.0011]
[1772271277373,5.38155203,1858.3,1857.6,0.0011]
[1772271277569,1.62583128,1858.4,1857.6,0.0011]
[1772271277765,5.38155203,1858.3,1857.6,0.0011]
[1772271277965,1.91422585,1858.4,1857.6,0.0011]
[1772271278195,5.38155203,1858.3,1857.6,0.0011]
[1772271278408,1.62583128,1858.4,1857.6,0.0011]
[1772271278574,5.38155203,1858.3,1857.6,0.0011]
[1772271278775,1.913,1858.7,1857.6,6.5011]
[1772271278776,5.38040805,1858.6,1857.6,6.5011]
[1772271279079,3.25809846,1858.7,1857.6,6.5011]
[1772271279080,3.25809846,1858.7,1857.7,7.84569087]
[1772271279286,5.38040805,1858.6,1857.7,7.84569087]
[1772271279491,3.25809846,1858.7,1857.8,6.5]
[1772271279803,5.38040805,1858.6,1857.8,6.5011]
[1772271280092,0.001,1858.4,1857.8,6.5011]
[1772271280317,3.25809846,1858.7,1857.8,6.5011]
[1772271280499,5.38040805,1858.6,1857.8,6.5011]
[1772271282673,5.38040805,1858.6,1857.8,7.84673273]
[1772271283892,5.38040805,1858.6,1857.8,6.5011]
[1772271284706,5.38040805,1858.6,1857.8,7.84677762]
[1772271285479,1.34509846,1858.6,1857.8,7.84677762]
[1772271286180,1.91,1858.7,1857.8,7.84677762]
[1772271286382,7.29039384,1858.7,1857.8,7.84677762]
[1772271286917,3.08075293,1858.8,1857.9,6.5]
[1772271286918,5.37996708,1858.8,1857.9,6.5]
[1772271287284,1.72741382,1858.9,1857.9,6.5]
[1772271287596,5.37996708,1858.8,1857.9,6.5]
[1772271287835,1.72741382,1858.9,1857.9,6.5]
[1772271287999,5.37996708,1858.8,1857.9,6.5]
[1772271288387,5.28051567,1858.8,1858.0,1.826]
[1772271288600,10.66048275,1858.8,1858.0,1.826]
[1772271288799,10.66048275,1858.8,1858.0,9.67150215]
[1772271288990,5.66048275,1858.8,1858.0,1.826]
[1772271289379,5.66048275,1858.8,1857.8,6.5011]
[1772271289380,5.66048275,1858.8,1857.8,8.3271]
[1772271289578,0.28839457,1858.7,1857.8,8.3271]
[1772271290182,5.66048275,1858.8,1857.8,8.3271]
[1772271290710,5.66048275,1858.8,1857.8,9.67277336]
[1772271290912,5.28051567,1858.8,1857.8,9.67277336]
[1772271291212,10.66048275,1858.8,1857.8,9.67277336]
[1772271291708,5.66048275,1858.8,1857.9,6.5]
[1772271292079,1.72741382,1858.9,1857.9,6.5]
[1772271292285,5.37996708,1858.8,1857.9,6.5]
[1772271292705,7.00792949,1858.9,1857.9,6.5011]
[1772271292881,5.38096708,1858.8,1857.9,6.5011]
[1772271293412,7.00792949,1858.9,1857.9,6.5011]
[1772271293615,5.37996708,1858.8,1857.9,6.5011]
[1772271293798,5.37996708,1858.8,1857.9,7.84670476]
[1772271294108,5.37996708,1858.8,1857.9,6.5011]
[1772271294309,10.80792949,1858.9,1857.9,6.5011]
[1772271294480,5.37996708,1858.8,1857.9,6.5011]
[1772271294685,10.80792949,1858.9,1857.9,6.5011]
[1772271294914,5.28051567,1858.6,1857.9,0.0011]
[1772271295084,14.47182332,1858.8,1857.9,0.0011]
[1772271295085,5.28051567,1858.3,1857.9,0.0011]
[1772271295280,1.345388,1858.2,1857.9,0.0011]
[1772271295507,1.345388,1858.2,1857.7,0.0011]
[1772271295829,7.29371367,1858.5,1857.7,6.5011]
[1772271295996,1.34524321,1858.4,1857.7,6.5011]
[1772271296304,1.913,1858.5,1857.7,6.5011]
[1772271296619,1.34524321,1858.4,1857.7,6.5011]
[1772271297022,1.979536,1858.5,1857.7,6.5011]
[1772271297320,7.36024967,1858.5,1857.7,6.5011]
[1772271297485,7.05917083,1858.6,1857.7,6.5011]
[1772271297690,7.05917083,1858.6,1857.7,7.84684945]
[1772271297906,5.38071367,1858.5,1857.7,6.5011]
[1772271298099,7.05917083,1858.6,1857.8,6.5]
[1772271298305,5.38071367,1858.5,1857.8,6.5]
[1772271298510,7.05917083,1858.6,1857.8,6.5]
[1772271298687,5.28051567,1858.3,1857.7,6.5011]
[1772271298887,13.0195654,1858.6,1857.7,6.5011]
[1772271298888,12.73117083,1858.6,1857.7,6.5011]
[1772271299285,9.15216137,1858.5,1857.7,6.5011]
[1772271299516,3.7714477,1858.5,1857.7,6.5011]
[1772271299698,5.38071367,1858.5,1857.7,6.5011]
[1772271299898,7.05917083,1858.6,1857.7,7.84684118]
[1772271300119,5.38071367,1858.5,1857.7,6.5011]
[1772271300424,3.8,1858.6,1857.7,7.84684324]
[1772271300608,3.8,1858.6,1857.8,6.5]
[1772271300784,5.37995772,1858.8,1858.0,6.5]
[1772271300989,1.34507258,1858.7,1858.0,6.5]
[1772271301189,5.37995772,1858.8,1858.0,6.5]
[1772271301424,1.34507258,1858.7,1858.0,6.5]
[1772271301622,5.37995772,1858.8,1858.0,7.84551935]
[1772271301623,1.34495577,1858.8,1858.0,7.84551935]
[1772271301932,7.1070937,1858.9,1858.0,7.84551935]
[1772271302086,1.34495577,1858.8,1858.0,7.84553239]
[1772271302290,2.5,1858.9,1858.1,6.5]
[1772271302519,1.34495577,1858.8,1858.1,6.5]
[1772271302893,4.2247707,1858.9,1858.1,6.5]
[1772271303086,1.34495577,1858.8,1858.1,6.5]
[1772271303291,5.44577428,1859.0,1858.1,6.5]
[1772271303492,5.37981493,1858.9,1858.1,6.5]
[1772271303693,3.7714477,1858.9,1858.1,6.5]